fUST/lending_fUST_20240728
["ID","MTS","AMOUNT","RATE_DAILY","PERIOD"]
[333476764,1722175833772,-244.97,0.00015273,2]
[333476765,1722175833784,-184.37,0.00015273,2]
[333476766,1722175833793,-166.666666,0.00015439,2]
[333476767,1722175833803,-367.60913684,0.00015441,2]
[333476768,1722175833812,-500.0,0.00015545,2]
[333476769,1722175833822,-500.0,0.00015545,2]
[333476770,1722175833831,-500.0,0.00015545,2]
[333476771,1722175833841,-238.56,0.00015545,2]
[333476772,1722175833851,-293.52,0.00015545,2]
[333476773,1722175833861,-500.0,0.00015545,2]
[333476774,1722175833870,-500.0,0.00015545,2]
[333476775,1722175833880,-404.49323576,0.00015545,2]
[333476776,1722175833891,-253.36410041,0.00015545,2]
[333476826,1722175843223,-500.0,0.00014997,2]
[333476827,1722175843232,-463.65405921,0.00014998,2]
[333476828,1722175843242,-151.0,0.00014999,2]
[333476829,1722175843252,-312.45532029,0.00015348,2]
[333476830,1722175843261,-246.63589959,0.00015545,2]
[333476831,1722175843271,-500.0,0.00015546,2]
[333476832,1722175843282,-500.0,0.00015546,2]
[333476833,1722175843294,-500.0,0.00015546,2]
[333476834,1722175843304,-500.0,0.00015546,2]
[333476835,1722175843314,-500.0,0.00015547,2]
[333476836,1722175843324,-552.88,0.00015547,2]
[333476837,1722175843335,-260.7,0.00015547,2]
[333476838,1722175843347,-6143.98820241,0.000156,5]
[333476839,1722175843358,-1085.9124515,0.000156,2]
[333476840,1722175843373,-69.72503915,0.000156,2]
[333476841,1722175843383,-1007.25629816,0.00015634,2]
[333476842,1722175843392,-10608.97581643,0.00015644,2]
[333476846,1722175846462,-994.52512511,0.00014999,2]
[333476847,1722175846471,-500.0,0.00015271,2]
[333476848,1722175846481,-500.0,0.00015545,2]
[333476849,1722175846490,-16610.03116586,0.00015644,2]
[333476850,1722175846499,-151.0,0.00015644,2]
[333476851,1722175846509,-2014.51259632,0.0001568,2]
[333476852,1722175846518,-1007.25629816,0.00015687,2]
[333476853,1722175846527,-3021.76889448,0.0001569,2]
[333476854,1722175846537,-1007.25629816,0.00015697,2]
[333476855,1722175846546,-1007.25629816,0.00015698,2]
[333476856,1722175846556,-87048.30675329,0.000157,2]
[333476861,1722176751734,155.0,0.0001,2]
[333476862,1722176759887,277.0,0.0001,2]
[333476863,1722176827143,-165.360938,0.00013425,2]
[333476864,1722176827169,-180.732927,0.00013995,2]
[333476865,1722176827199,-72.019212,0.0001417,2]
[333476866,1722176844132,-1216.048385,0.0001417,2]
[333476867,1722176844158,-736.693286,0.00014247,2]
[333476868,1722176844188,-158.108903,0.0001426,2]
[333476869,1722176844214,-158.108903,0.00014508,2]
[333476870,1722176844255,-452.98028837,0.0001469,2]
[333476871,1722176851123,-541.54483674,0.0001469,2]
[333476872,1722176851150,-267.99213488,0.0001469,2]
[333476873,1722176851178,-158.108903,0.00014756,2]
[333476874,1722176851208,-500.0,0.00014999,2]
[333476875,1722176851237,-158.108903,0.00015003,2]
[333476876,1722176851260,-500.0,0.00015273,2]
[333476877,1722176851284,-312.45532029,0.00015357,2]
[333476878,1722176851313,-500.0,0.00015547,2]
[333476879,1722176851340,-346.71733923,0.000156,2]
[333476880,1722176851363,-300.0,0.00015695,2]
[333476881,1722176851391,-500.0,0.00015696,2]
[333476882,1722176851415,-573.40770862,0.00015696,2]
[333476883,1722176851440,-551.2509193,0.00015696,2]
[333476884,1722176851468,-500.0,0.00015696,2]
[333476885,1722176851493,-1021.92891701,0.00015697,2]
[333476886,1722176851519,-1021.92891701,0.00015698,2]
[333476887,1722176851691,-500.0,0.00015699,2]
[333476888,1722176851715,-500.0,0.00015699,2]
[333476889,1722176851743,-500.0,0.00015699,2]
[333476890,1722176851767,-323.98494305,0.00015699,2]
[333476895,1722176953134,-340.76109052,0.00010959,2]
[333476896,1722176958098,-58.41890948,0.00010959,2]
[333476897,1722177024713,154.88296144,0.00010959,2]
[333476898,1722177030156,164.24967346,0.00010959,2]
[333476957,1722177033957,-170.183231,0.00014449,2]
[333476958,1722177033969,-196.65636567,0.00015005,2]
[333476959,1722177033978,-65.16040333,0.00015105,2]
[333476960,1722177034009,-105.02282767,0.00015105,2]
[333476961,1722177034019,-196.65636567,0.00015252,2]
[333476962,1722177034029,-196.65636567,0.00015498,2]
[333476963,1722177034039,-303.37767187,0.00015598,2]
[333476964,1722177034049,-300.0,0.00015696,2]
[333476965,1722177034059,-300.0,0.00015696,2]
[333476966,1722177034069,-186.9633868,0.00015697,2]
[333476967,1722177034079,-500.0,0.00015697,2]
[333476968,1722177034089,-403.88402955,0.00015697,2]
[333476969,1722177034099,-4835.58581823,0.00015697,2]
[333476970,1722177034111,-1294.76841677,0.00015697,2]
[333477724,1722177046604,-573.51204007,0.00015697,2]
[333480517,1722178031172,-206.25,0.00013986,2]
[333480518,1722178031195,-169.011043,0.00014045,2]
[333480519,1722178031216,-211.39873755,0.00014247,2]
[333480520,1722178035111,-488.45988345,0.00014247,2]
[333480521,1722178035133,-3154.55045226,0.00014689,5]
[333480522,1722178035154,-5023.67117629,0.0001469,2]
[333480523,1722178045147,-815.82252143,0.0001469,2]
[333480524,1722178045171,-206.25,0.00014715,2]
[333480525,1722178045192,-951.2964008,0.00015,2]
[333480526,1722178045212,-1108.17514816,0.00015,2]
[333480527,1722178045233,-169.011043,0.00015002,2]
[333480528,1722178045254,-165.068034,0.00015342,2]
[333480529,1722178045277,-306.87301754,0.0001553,2]
[333480530,1722178053095,-813.86963795,0.0001553,2]
[333480603,1722178240807,-1577.27522613,0.00014689,5]
[333480604,1722178240817,-2793.44939621,0.0001469,2]
[333480605,1722178240829,-1473.00074673,0.0001469,2]
[333481195,1722179231176,-154.65203293,0.00012935,2]
[333481196,1722179235108,-203.75,0.00010959,2]
[333481197,1722179235130,-95.34796707,0.00012935,2]
[333481198,1722179235154,-177.2387569,0.00013281,2]
[333481199,1722179235179,-169.984096,0.00013287,2]
[333481200,1722179235200,-997.86996681,0.00013347,2]
[333481201,1722179248113,-300.0,0.00013347,2]
[333481202,1722179253106,-765.46396401,0.00013347,2]
[333481203,1722179254103,-960.803161,0.00013347,2]
[333481207,1722179368092,-482.7372859,0.00013033,2]
[333481208,1722179368116,-191.49221591,0.00013247,2]
[333481209,1722179368142,-371.68578033,0.00013347,2]
[333481210,1722179368165,-3039.66365558,0.00013347,2]
[333481211,1722179368186,-167.25276,0.00013348,2]
[333481212,1722179368208,-169.984096,0.00013364,2]
[333481213,1722179368230,-169.984096,0.00013441,2]
[333481214,1722179368255,-169.984096,0.00013517,2]
[333481215,1722179368276,-169.984096,0.00013594,2]
[333481216,1722179368299,-169.984096,0.00013671,2]
[333481217,1722179368322,-300.0,0.00013698,2]
[333481218,1722179368344,-300.0,0.00013698,2]
[333481219,1722179368365,-3000.0,0.00013699,2]
[333481220,1722179368386,-169.984096,0.00013748,2]
[333481221,1722179368412,-169.984096,0.00013825,2]
[333481222,1722179368435,-169.984096,0.00013902,2]
[333481223,1722179368455,-167.25276,0.00013954,2]
[333481224,1722179368475,-156.86808342,0.00013979,2]
[333481225,1722179374138,-743.54609804,0.00013648,2]
[333481391,1722179437925,-166.666666,0.00013339,2]
[333481393,1722179437937,-8.96470359,0.00013648,2]
[333481395,1722179437950,-166.666666,0.00013702,2]
[333481397,1722179437960,-13.11601258,0.00013979,2]
[333481399,1722179437970,-166.666666,0.00014066,2]
[333481401,1722179437980,-664.865689,0.00014247,2]
[333481403,1722179437989,-166.666666,0.0001443,2]
[333481405,1722179437999,-300.0,0.00014679,2]
[333481407,1722179438009,-300.0,0.00014679,2]
[333481409,1722179438019,-500.0,0.00014679,2]
[333481411,1722179438029,-500.0,0.00014679,2]
[333481414,1722179438039,-500.0,0.00014679,2]
[333481416,1722179438049,-500.0,0.00014679,2]
[333481418,1722179438059,-2954.84435283,0.0001468,5]
[333481420,1722179438071,-4246.8907257,0.0001468,5]
[333481422,1722179438083,-12607.48975021,0.0001468,5]
[333481622,1722179442972,-1713.47358567,0.0001468,5]
[333481629,1722179445946,-1375.44586744,0.0001468,5]
[333481631,1722179445956,-35729.7754407,0.0001468,2]
[333481632,1722179445966,-632.71882069,0.00014686,2]
[333481633,1722179445978,-500.0,0.00014687,2]
[333481634,1722179445988,-500.0,0.00014687,2]
[333481635,1722179445997,-500.0,0.00014687,2]
[333481636,1722179446006,-832.59,0.00014687,2]
[333481637,1722179446016,-500.0,0.00014687,2]
[333481638,1722179446025,-500.0,0.00014687,2]
[333481639,1722179446036,-500.0,0.00014687,2]
[333481640,1722179446046,-500.0,0.00014687,2]
[333481641,1722179446056,-500.0,0.00014687,2]
[333481642,1722179446067,-500.0,0.00014687,2]
[333481643,1722179446077,-500.0,0.00014687,2]
[333481644,1722179446086,-500.0,0.00014687,2]
[333481645,1722179446096,-500.0,0.00014687,2]
[333481646,1722179446105,-500.0,0.00014687,2]
[333481647,1722179446114,-500.0,0.00014687,2]
[333481648,1722179446124,-500.0,0.00014687,2]
[333481649,1722179446135,-500.0,0.00014687,2]
[333481650,1722179446145,-500.0,0.00014687,2]
[333481651,1722179446155,-500.0,0.00014687,2]
[333481652,1722179446166,-500.0,0.00014687,2]
[333481653,1722179446176,-500.0,0.00014687,2]
[333481654,1722179446186,-819.27,0.00014687,2]
[333481655,1722179446196,-500.0,0.00014687,2]
[333481656,1722179446206,-500.0,0.00014688,2]
[333481657,1722179446215,-500.0,0.00014688,2]
[333481658,1722179446225,-500.0,0.00014688,2]
[333481659,1722179446245,-500.0,0.00014688,2]
[333481660,1722179446258,-500.0,0.00014688,2]
[333481661,1722179446268,-500.0,0.00014688,2]
[333481662,1722179446278,-500.0,0.00014688,2]
[333481663,1722179446287,-500.0,0.00014688,2]
[333481664,1722179446297,-514.57,0.00014688,2]
[333481665,1722179446307,-500.0,0.00014688,2]
[333481666,1722179446318,-500.0,0.00014688,2]
[333481667,1722179446327,-500.0,0.00014688,2]
[333481668,1722179446339,-500.0,0.00014688,2]
[333481669,1722179446351,-500.0,0.00014688,2]
[333481670,1722179446361,-500.0,0.00014688,2]
[333481671,1722179446372,-500.0,0.00014688,2]
[333481672,1722179446383,-500.0,0.00014688,2]
[333481673,1722179446392,-500.0,0.00014688,2]
[333481674,1722179446402,-500.0,0.00014688,2]
[333481675,1722179446412,-500.0,0.00014688,2]
[333481676,1722179446423,-500.0,0.00014688,2]
[333481677,1722179446434,-500.0,0.00014688,2]
[333481678,1722179446443,-500.0,0.00014688,2]
[333481679,1722179446453,-500.0,0.00014688,2]
[333481680,1722179446464,-500.0,0.00014688,2]
[333481681,1722179446475,-204.16,0.00014689,2]
[333481682,1722179446485,-500.0,0.00014689,2]
[333481683,1722179446495,-500.0,0.00014689,2]
[333481684,1722179446504,-500.0,0.00014689,2]
[333481685,1722179446516,-500.0,0.00014689,2]
[333481686,1722179446525,-500.0,0.00014689,2]
[333481687,1722179446535,-500.0,0.00014689,2]
[333481688,1722179446545,-500.0,0.00014689,2]
[333481689,1722179446555,-500.0,0.00014689,2]
[333481690,1722179446566,-500.0,0.00014689,2]
[333481691,1722179446577,-500.0,0.00014689,2]
[333481692,1722179446586,-500.0,0.00014689,2]
[333481693,1722179446596,-500.0,0.00014689,2]
[333481694,1722179446607,-500.0,0.00014689,2]
[333481695,1722179446617,-500.0,0.00014689,2]
[333481696,1722179446628,-316.88944852,0.00014689,2]
[333481697,1722179446637,-500.0,0.00014689,2]
[333481698,1722179446647,-500.0,0.00014689,2]
[333481699,1722179446657,-500.0,0.00014689,2]
[333481700,1722179446667,-500.0,0.00014689,2]
[333481701,1722179446677,-500.0,0.00014689,2]
[333481702,1722179446687,-500.0,0.00014689,2]
[333481703,1722179446697,-500.0,0.00014689,2]
[333481704,1722179446707,-500.0,0.00014689,2]
[333481705,1722179446717,-500.0,0.00014689,2]
[333481706,1722179446726,-500.0,0.00014689,2]
[333481707,1722179446736,-501.91016536,0.00014689,2]
[333481708,1722179446745,-500.0,0.00014689,2]
[333481709,1722179446755,-500.63198735,0.00014689,2]
[333481710,1722179446765,-415.28690629,0.00014689,2]
[333481711,1722179446775,-501.37871029,0.00014689,2]
[333481712,1722179446785,-500.0,0.00014689,2]
[333481713,1722179446794,-502.43263724,0.00014689,2]
[333481714,1722179446804,-500.0,0.00014689,2]
[333481715,1722179446813,-500.0,0.00014689,2]
[333481716,1722179446824,-153.05807994,0.00014689,2]
[333481717,1722179446833,-500.0,0.00014689,2]
[333481718,1722179446843,-514.50472267,0.00014689,2]
[333481719,1722179446852,-500.0,0.00014689,2]
[333481720,1722179446862,-500.0,0.00014689,2]
[333481721,1722179446871,-214.00844577,0.00014689,2]
[333481722,1722179446880,-500.0,0.00014689,2]
[333481723,1722179446890,-500.0,0.00014689,2]
[333481724,1722179446899,-553.82563815,0.00014689,2]
[333481725,1722179446909,-500.0,0.00014689,2]
[333481726,1722179446921,-151.0,0.00014689,2]
[333481727,1722179446931,-500.0,0.00014689,2]
[333481728,1722179446940,-504.0877914,0.00014689,2]
[333481729,1722179446950,-500.0,0.00014689,2]
[333481730,1722179446959,-500.0,0.00014689,2]
[333481731,1722179447085,-500.0,0.00014689,2]
[333481732,1722179447096,-500.0,0.00014689,2]
[333481733,1722179447106,-500.0,0.00014689,2]
[333481734,1722179447116,-500.0,0.00014689,2]
[333481735,1722179447126,-500.0,0.00014689,2]
[333481736,1722179447135,-810.177448,0.00014689,2]
[333481737,1722179447144,-500.0,0.00014689,2]
[333481738,1722179447154,-504.81244601,0.00014689,2]
[333481739,1722179447180,-500.0,0.00014689,2]
[333481740,1722179447191,-810.177448,0.00014689,2]
[333481741,1722179447200,-500.0,0.00014689,2]
[333481742,1722179447211,-556.58482081,0.00014689,2]
[333481743,1722179447221,-500.0,0.00014689,2]
[333481744,1722179447231,-151.311299,0.00014689,2]
[333481745,1722179447241,-500.0,0.00014689,2]
[333481746,1722179447250,-500.0,0.00014689,2]
[333481747,1722179447260,-500.0,0.00014689,2]
[333481748,1722179447269,-593.69023771,0.00014689,2]
[333481749,1722179447279,-151.0,0.00014689,2]
[333481750,1722179447288,-500.0,0.00014689,2]
[333481751,1722179447298,-500.0,0.00014689,2]
[333481752,1722179447308,-168.363356,0.00014689,2]
[333481753,1722179447317,-500.0,0.00014689,2]
[333481754,1722179447327,-500.0,0.00014689,2]
[333481755,1722179447337,-500.0,0.00014689,2]
[333481756,1722179447350,-168.363356,0.00014689,2]
[333481757,1722179447359,-500.0,0.00014689,2]
[333481758,1722179447369,-507.47056033,0.00014689,2]
[333481759,1722179447378,-505.77134862,0.00014689,2]
[333481760,1722179447389,-510.37,0.00014689,2]
[333481761,1722179447398,-363.608078,0.00014689,2]
[333481762,1722179447408,-258.21237859,0.00014689,2]
[333481763,1722179447419,-500.0,0.00014689,2]
[333481764,1722179447429,-500.0,0.00014689,2]
[333481765,1722179447438,-500.0,0.00014689,2]
[333481766,1722179447448,-363.608078,0.00014689,2]
[333481767,1722179447457,-500.0,0.00014689,2]
[333481768,1722179447467,-346.11224575,0.00014689,2]
[333481769,1722179447476,-151.0,0.00014689,2]
[333481770,1722179447486,-151.0,0.00014689,2]
[333481771,1722179447495,-151.0,0.00014689,2]
[333481772,1722179447504,-500.0,0.00014689,2]
[333481773,1722179447514,-500.0,0.00014689,2]
[333481774,1722179447523,-500.0,0.00014689,2]
[333481775,1722179447532,-500.0,0.00014689,2]
[333481776,1722179447542,-500.0,0.00014689,2]
[333481777,1722179447551,-500.0,0.00014689,2]
[333481778,1722179447561,-500.0,0.00014689,2]
[333481779,1722179447571,-500.0,0.00014689,2]
[333481780,1722179447580,-500.0,0.00014689,2]
[333481781,1722179447590,-500.0,0.00014689,2]
[333481782,1722179447601,-500.0,0.00014689,2]
[333481783,1722179447611,-500.0,0.00014689,2]
[333481784,1722179447620,-502.36469051,0.00014689,2]
[333481785,1722179447629,-519.5797056,0.00014689,2]
[333481786,1722179447638,-500.0,0.00014689,2]
[333481787,1722179447648,-500.0,0.00014689,2]
[333481788,1722179447657,-214.4596381,0.00014689,2]
[333481789,1722179447668,-151.0,0.00014689,2]
[333481790,1722179447678,-151.0,0.00014689,2]
[333481791,1722179447690,-151.0,0.00014689,2]
[333481792,1722179447699,-151.0,0.00014689,2]
[333481793,1722179447709,-151.0,0.00014689,2]
[333481794,1722179447718,-500.0,0.00014689,2]
[333481795,1722179447727,-500.0,0.00014689,2]
[333481796,1722179447737,-6166.62,0.00014689,2]
[333481797,1722179447746,-176.794862,0.00014689,2]
[333481798,1722179447755,-500.0,0.00014689,2]
[333481799,1722179447765,-506.317492,0.00014689,2]
[333481800,1722179447774,-151.0,0.00014689,2]
[333481801,1722179447784,-176.794862,0.00014689,2]
[333481802,1722179447795,-500.0,0.00014689,2]
[333481803,1722179447804,-500.0,0.00014689,2]
[333481804,1722179447814,-500.0,0.00014689,2]
[333481805,1722179447824,-500.0,0.00014689,2]
[333481806,1722179447834,-500.0,0.00014689,2]
[333481807,1722179447843,-500.0,0.00014689,2]
[333481808,1722179447853,-500.0,0.00014689,2]
[333481809,1722179447862,-500.0,0.00014689,2]
[333481810,1722179447872,-208.734061,0.00014689,2]
[333481811,1722179447881,-500.0,0.00014689,2]
[333481812,1722179447890,-500.0,0.00014689,2]
[333481813,1722179447901,-208.734061,0.00014689,2]
[333481814,1722179447910,-208.734061,0.00014689,2]
[333481815,1722179447921,-208.734061,0.00014689,2]
[333481816,1722179447930,-208.734061,0.00014689,2]
[333481817,1722179447940,-208.734061,0.00014689,2]
[333481818,1722179447949,-208.734061,0.00014689,2]
[333481819,1722179447959,-208.734061,0.00014689,2]
[333481820,1722179447968,-500.0,0.00014689,2]
[333481821,1722179447977,-500.0,0.00014689,2]
[333481822,1722179447987,-1091.03770757,0.0001469,2]
[333481823,1722179447997,-526.94940313,0.0001469,2]
[333481824,1722179448006,-303.11712135,0.0001469,2]
[333481825,1722179448015,-194.46725522,0.0001469,2]
[333481826,1722179448025,-151.0,0.0001469,2]
[333481827,1722179448035,-810.177448,0.0001469,2]
[333481828,1722179448045,-810.177448,0.0001469,2]
[333481829,1722179448055,-168.363356,0.0001469,2]
[333481830,1722179448064,-168.363356,0.0001469,2]
[333481831,1722179448075,-208.734061,0.0001469,2]
[333481832,1722179448084,-208.734061,0.0001469,2]
[333481833,1722179448094,-166.666666,0.00014793,2]
[333481834,1722179448104,-500.0,0.00014952,2]
[333481835,1722179448113,-288.203309,0.00014953,2]
[333481836,1722179448123,-288.203309,0.00014953,2]
[333481837,1722179448132,-1973.223906,0.00014953,2]
[333481838,1722179448142,-1973.223906,0.00014953,2]
[333481839,1722179448152,-635.384553,0.00014953,2]
[333481840,1722179448161,-151.0,0.00014953,2]
[333481841,1722179448173,-635.384553,0.00014953,2]
[333481842,1722179448184,-624.71076,0.00014953,2]
[333481843,1722179448193,-624.71076,0.00014953,2]
[333481844,1722179448204,-151.0,0.00014953,2]
[333481845,1722179448214,-151.0,0.00014953,2]
[333481846,1722179448224,-151.0,0.00014953,2]
[333481847,1722179448234,-151.0,0.00014953,2]
[333481848,1722179448243,-151.0,0.00014953,2]
[333481849,1722179448254,-151.0,0.00014953,2]
[333481850,1722179448263,-810.177448,0.00014953,2]
[333481851,1722179448273,-810.177448,0.00014953,2]
[333481852,1722179448282,-151.0,0.00014953,2]
[333481853,1722179448292,-168.363356,0.00014953,2]
[333481854,1722179448301,-168.363356,0.00014953,2]
[333481855,1722179448311,-363.608078,0.00014953,2]
[333481856,1722179448321,-363.608078,0.00014953,2]
[333481857,1722179448330,-363.608078,0.00014953,2]
[333481858,1722179448342,-363.608078,0.00014953,2]
[333481859,1722179448351,-151.0,0.00014953,2]
[333481860,1722179448361,-151.0,0.00014953,2]
[333481861,1722179448370,-295.550861,0.00014953,2]
[333481862,1722179448379,-151.0,0.00014953,2]
[333481863,1722179448390,-151.0,0.00014953,2]
[333481864,1722179448400,-176.794862,0.00014953,2]
[333481865,1722179448411,-176.794862,0.00014953,2]
[333481866,1722179448424,-176.794862,0.00014953,2]
[333481867,1722179448434,-176.794862,0.00014953,2]
[333481868,1722179448444,-268.99553092,0.00014953,2]
[333481869,1722179448454,-208.734061,0.00014953,2]
[333481870,1722179448464,-208.734061,0.00014953,2]
[333481871,1722179448475,-208.734061,0.00014953,2]
[333481872,1722179448485,-500.0,0.00014953,2]
[333481873,1722179448495,-208.734061,0.00014953,2]
[333481874,1722179448505,-35729.7754407,0.00014953,2]
[333481875,1722179448515,-500.0,0.00014961,2]
[333481876,1722179448525,-500.0,0.00014961,2]
[333481877,1722179448535,-832.59,0.00014961,2]
[333481878,1722179448544,-500.0,0.00014961,2]
[333481879,1722179448554,-500.0,0.00014961,2]
[333481880,1722179448564,-500.0,0.00014961,2]
[333481881,1722179448575,-500.0,0.00014961,2]
[333481882,1722179448585,-500.0,0.00014961,2]
[333481883,1722179448595,-500.0,0.00014961,2]
[333481884,1722179448605,-500.0,0.00014961,2]
[333481885,1722179448615,-500.0,0.00014961,2]
[333481886,1722179448625,-500.0,0.00014961,2]
[333481887,1722179448636,-500.0,0.00014961,2]
[333481888,1722179448645,-500.0,0.00014961,2]
[333481889,1722179448655,-500.0,0.00014961,2]
[333481890,1722179448666,-500.0,0.00014961,2]
[333481891,1722179448676,-500.0,0.00014961,2]
[333481892,1722179448686,-500.0,0.00014961,2]
[333481893,1722179448696,-819.27,0.00014961,2]
[333481894,1722179448707,-500.0,0.00014961,2]
[333481895,1722179448717,-500.0,0.00014962,2]
[333481896,1722179448727,-326.93579326,0.00014962,2]
[333481897,1722179448737,-500.0,0.00014962,2]
[333481898,1722179448747,-500.0,0.00014962,2]
[333481899,1722179448757,-500.0,0.00014962,2]
[333481900,1722179448767,-500.0,0.00014962,2]
[333481901,1722179448776,-500.0,0.00014962,2]
[333481902,1722179448786,-500.0,0.00014962,2]
[333481903,1722179448795,-500.0,0.00014962,2]
[333481904,1722179448805,-500.0,0.00014962,2]
[333481905,1722179448814,-500.0,0.00014962,2]
[333481906,1722179448825,-196.25,0.00014962,2]
[333481907,1722179448834,-500.0,0.00014962,2]
[333481908,1722179448844,-500.0,0.00014962,2]
[333481909,1722179448854,-500.0,0.00014962,2]
[333481910,1722179448863,-500.0,0.00014962,2]
[333481911,1722179448872,-500.0,0.00014962,2]
[333481912,1722179448881,-500.0,0.00014962,2]
[333481913,1722179448891,-500.0,0.00014962,2]
[333481914,1722179448900,-500.0,0.00014962,2]
[333481915,1722179448910,-500.0,0.00014962,2]
[333481916,1722179448921,-500.0,0.00014962,2]
[333481917,1722179448931,-208.734061,0.00014962,2]
[333481918,1722179448941,-208.734061,0.00014962,2]
[333481919,1722179448951,-500.0,0.00014963,2]
[333481920,1722179448961,-500.0,0.00014963,2]
[333481921,1722179448971,-500.0,0.00014963,2]
[333481922,1722179448981,-500.0,0.00014963,2]
[333481923,1722179448991,-500.0,0.00014963,2]
[333481924,1722179449002,-500.0,0.00014963,2]
[333481925,1722179449013,-500.0,0.00014963,2]
[333481926,1722179449022,-500.0,0.00014963,2]
[333481927,1722179449032,-500.0,0.00014963,2]
[333481928,1722179449042,-500.0,0.00014963,2]
[333481929,1722179449053,-151.0,0.00014963,2]
[333481930,1722179449062,-500.0,0.00014963,2]
[333481931,1722179449072,-500.0,0.00014963,2]
[333481932,1722179449081,-151.0,0.00014963,2]
[333481933,1722179449090,-500.0,0.00014963,2]
[333481934,1722179449101,-500.0,0.00014963,2]
[333481935,1722179449110,-500.0,0.00014963,2]
[333481936,1722179449120,-288.203309,0.00014963,2]
[333481937,1722179449129,-151.0,0.00014963,2]
[333481938,1722179449139,-288.203309,0.00014963,2]
[333481939,1722179449149,-151.0,0.00014963,2]
[333481940,1722179449158,-1973.223906,0.00014963,2]
[333481941,1722179449168,-1973.223906,0.00014963,2]
[333481942,1722179449178,-151.0,0.00014963,2]
[333481943,1722179449188,-635.384553,0.00014963,2]
[333481944,1722179449198,-151.0,0.00014963,2]
[333481945,1722179449207,-635.384553,0.00014963,2]
[333481946,1722179449217,-624.71076,0.00014963,2]
[333481947,1722179449227,-624.71076,0.00014963,2]
[333481948,1722179449239,-151.0,0.00014963,2]
[333481949,1722179449250,-151.0,0.00014963,2]
[333481950,1722179449261,-500.0,0.00014963,2]
[333481951,1722179449271,-151.0,0.00014963,2]
[333481952,1722179449281,-151.0,0.00014963,2]
[333481953,1722179449292,-151.0,0.00014963,2]
[333481954,1722179449302,-500.0,0.00014963,2]
[333481955,1722179449312,-151.0,0.00014963,2]
[333481956,1722179449322,-500.0,0.00014963,2]
[333481957,1722179449333,-810.177448,0.00014963,2]
[333481958,1722179449345,-810.177448,0.00014963,2]
[333481959,1722179449355,-810.177448,0.00014963,2]
[333481960,1722179449365,-810.177448,0.00014963,2]
[333481961,1722179449375,-500.0,0.00014963,2]
[333481962,1722179449386,-500.0,0.00014963,2]
[333481963,1722179449396,-500.0,0.00014963,2]
[333481964,1722179449405,-168.363356,0.00014963,2]
[333481965,1722179449490,-168.363356,0.00014963,2]
[333481966,1722179449500,-500.0,0.00014963,2]
[333481967,1722179449511,-500.0,0.00014963,2]
[333481968,1722179449522,-168.363356,0.00014963,2]
[333481969,1722179449531,-168.363356,0.00014963,2]
[333481970,1722179449541,-363.608078,0.00014963,2]
[333481971,1722179449551,-363.608078,0.00014963,2]
[333481972,1722179449561,-363.608078,0.00014963,2]
[333481973,1722179449572,-363.608078,0.00014963,2]
[333481974,1722179449582,-500.0,0.00014963,2]
[333481975,1722179449592,-500.0,0.00014963,2]
[333481976,1722179449602,-151.0,0.00014963,2]
[333481977,1722179449612,-151.0,0.00014963,2]